bitfinex/quotes_SOLUSD_20251120
["timestamp","ask_amount","ask_price","bid_price","bid_amount"]
[1763659185703,22.31464395,131.89,131.84,12.52581626]
[1763659185909,22.31464395,131.89,131.85,12.52581626]
[1763659186275,22.31464395,131.89,131.81,7.58657922]
[1763659186276,9.78882769,131.85,131.79,0.69]
[1763659186496,9.78882769,131.85,131.81,12.52581626]
[1763659186709,22.31464395,131.85,131.8,12.52581626]
[1763659186893,9.78882769,131.84,131.79,0.69]
[1763659187098,13.20581626,131.83,131.76,0.69]
[1763659187303,12.52581626,131.81,131.76,13.21581626]
[1763659187809,9.78882769,131.82,131.77,13.21581626]
[1763659188113,22.31464395,131.82,131.77,12.52581626]
[1763659188410,22.31464395,131.82,131.77,13.21581626]
[1763659188614,9.78882769,131.8,131.74,0.69]
[1763659188798,9.78882769,131.8,131.76,12.52581626]
[1763659189007,22.31464395,131.8,131.74,0.69]
[1763659189195,22.31464395,131.8,131.75,12.52581626]
[1763659189384,9.78882769,131.82,131.76,12.52581626]
[1763659189707,22.31464395,131.82,131.77,12.52581626]
[1763659189909,22.31464395,131.8,131.74,0.69]
[1763659190083,9.78882769,131.77,131.73,0.2]
[1763659190600,9.78882769,131.77,131.74,12.52581626]
[1763659190793,9.78882769,131.82,131.76,12.52581626]
[1763659191111,9.78882769,131.82,131.75,0.7]
[1763659191112,12.52581626,131.81,131.75,0.7]
[1763659191312,9.78882769,131.78,131.74,12.52581626]
[1763659191618,9.78882769,131.78,131.73,0.2]
[1763659191619,1.94,131.8,131.75,13.22581626]
[1763659191788,9.78882769,131.8,131.76,12.52581626]
[1763659191987,9.78882769,131.8,131.76,13.22581626]
[1763659192299,22.31464395,131.8,131.75,12.52581626]
[1763659192503,12.52581626,131.79,131.75,12.52581626]
[1763659192899,9.78882769,131.76,131.73,0.2]
[1763659193093,9.78882769,131.77,131.75,12.52581626]
[1763659193289,102.6,131.76,131.75,12.52581626]
[1763659193503,102.6,131.76,131.75,0.7]
[1763659193706,9.78882769,131.75,131.73,0.2]
[1763659194817,9.78882769,131.75,131.73,13.42581626]
[1763659195018,9.78882769,131.75,131.73,0.9]
[1763659195214,9.78882769,131.75,131.73,13.42581626]
[1763659195730,9.78882769,131.75,131.73,0.2]
[1763659195892,112.38882769,131.74,131.73,0.2]
[1763659196093,22.99464395,131.74,131.73,0.2]
[1763659196300,9.78882769,131.74,131.73,0.2]
[1763659197615,22.31464395,131.74,131.73,0.2]
[1763659198195,9.78882769,131.74,131.73,0.2]
[1763659198394,22.31464395,131.74,131.73,0.2]
[1763659198693,9.78882769,131.74,131.73,0.2]
[1763659198911,22.31464395,131.74,131.73,0.2]
[1763659199124,9.78882769,131.74,131.73,0.2]
[1763659199303,0.68,131.79,131.73,13.42581626]
[1763659199501,22.31464395,131.78,131.73,13.42581626]
[1763659199834,104.54,131.8,131.75,12.52581626]
[1763659200010,50.0,131.81,131.76,12.52581626]
[1763659200011,12.52581626,131.81,131.76,12.52581626]
[1763659200337,9.78882769,131.79,131.73,13.42581626]
[1763659200635,102.6,131.78,131.73,8.49125997]
[1763659200801,1.94,131.83,131.74,0.7]
[1763659200989,50.0,131.87,131.74,0.7]
[1763659200990,36.17992914,131.86,131.74,0.7]
[1763659201195,9.78882769,131.83,131.74,0.7]
[1763659201395,9.78882769,131.81,131.73,0.2]
[1763659201591,9.78882769,131.77,131.73,0.2]
[1763659201828,12.52581626,131.8,131.75,12.52581626]
[1763659201994,12.52581626,131.79,131.73,0.9]
[1763659202195,9.78882769,131.76,131.73,0.2]
[1763659202400,12.52581626,131.77,131.73,0.2]
[1763659202401,40.43560395,131.74,131.73,0.2]
[1763659202599,42.37560395,131.74,131.73,0.2]
[1763659202799,42.37560395,131.74,131.72,0.2]
[1763659202800,9.78882769,131.73,131.72,0.2]
[1763659203027,22.31464395,131.73,131.72,0.2]
[1763659203201,50.0,131.8,131.72,0.9]
[1763659203404,9.78882769,131.82,131.74,12.52581626]
[1763659203625,9.78882769,131.77,131.73,0.7]
[1763659203900,9.78882769,131.77,131.72,0.2]
[1763659204207,62.52581626,131.85,131.75,12.52581626]
[1763659204413,12.52581626,131.76,131.72,0.2]
[1763659204645,9.78882769,131.75,131.72,0.2]
[1763659204844,9.78882769,131.75,131.73,0.7]
[1763659205005,0.48,131.84,131.74,12.52581626]
[1763659205209,0.48,131.87,131.79,12.52581626]
[1763659205419,12.52581626,131.83,131.78,12.52581626]
[1763659205633,12.52581626,131.83,131.78,13.22581626]
[1763659205811,1.94,131.83,131.79,0.7]
[1763659206013,12.52581626,131.8,131.72,12.72581626]
[1763659206245,12.52581626,131.73,131.72,0.2]
[1763659206405,1.94,131.79,131.73,0.7]
[1763659206603,9.78882769,131.81,131.73,0.7]
[1763659206827,9.78882769,131.81,131.73,13.22581626]
[1763659206828,9.78882769,131.77,131.73,13.22581626]
[1763659207029,12.52581626,131.76,131.72,0.2]
[1763659207229,22.31464395,131.74,131.72,0.2]
[1763659207530,22.31464395,131.73,131.72,0.2]
[1763659207917,92.85560395,131.73,131.72,0.1]
[1763659208118,12.52581626,131.76,131.72,0.8]
[1763659208119,18.12096,131.76,131.72,0.8]
[1763659208331,50.38,131.84,131.75,12.52581626]
[1763659208508,12.52581626,131.81,131.76,12.52581626]
[1763659208709,2.32,131.85,131.78,12.52581626]
[1763659208921,12.52581626,131.81,131.77,0.7]
[1763659209120,1.94,131.88,131.8,12.52581626]
[1763659209347,50.38,131.92,131.83,12.52581626]
[1763659209539,85.49992914,131.94,131.87,12.52581626]
[1763659209736,12.52581626,131.93,131.87,0.7]
[1763659209939,1.94,131.94,131.88,0.7]
[1763659209940,12.52581626,131.92,131.88,0.7]
[1763659210235,1.94,131.94,131.9,12.52581626]
[1763659210236,12.52581626,131.94,131.9,12.52581626]
[1763659210438,3.96299685,132.02,131.93,12.52581626]
[1763659210439,50.38,132.02,131.93,12.52581626]
[1763659210629,50.38,132.02,131.96,12.52581626]
[1763659210630,14.46581626,132.01,131.96,12.52581626]
[1763659210817,52.32,132.05,131.91,18.12096]
[1763659211017,12.52581626,132.03,131.98,12.52581626]
[1763659211224,0.1,132.06,132.01,12.52581626]
[1763659211551,0.1,132.06,131.99,13.22581626]
[1763659211752,0.1,132.06,132.02,12.52581626]
[1763659211960,0.1,132.06,132.0,0.7]
[1763659212246,9.78882769,132.03,132.0,0.7]
[1763659212422,12.52581626,132.04,132.0,0.7]
[1763659212623,12.52581626,132.03,132.0,0.7]
[1763659212816,0.1,132.08,132.01,18.12096]
[1763659213020,0.1,132.08,132.01,27.90978769]
[1763659213238,0.2,132.13,132.07,13.23533412]
[1763659213561,0.2,132.13,132.12,13.23533412]
[1763659214046,0.1,132.17,132.15,18.12096]
[1763659214252,0.1,132.17,132.13,18.12096]
[1763659214458,0.1,132.17,132.1,0.7]
[1763659214615,13.33533412,132.17,132.12,13.23533412]
[1763659214817,13.23533412,132.13,132.03,1.94]
[1763659215118,2.04,132.17,132.1,13.23533412]
[1763659215324,2.04,132.17,132.05,0.7]
[1763659215325,0.1,132.17,132.14,13.23533412]
[1763659215638,0.1,132.17,132.13,13.23533412]
[1763659215837,0.1,132.17,132.11,9.78882769]
[1763659216032,0.1,132.17,132.14,18.12096]
[1763659216442,0.1,132.17,132.15,0.7]
[1763659216638,13.43533412,132.23,132.19,18.12096]
[1763659216639,0.2,132.23,132.19,18.12096]
[1763659216841,0.2,132.23,132.16,15.17533412]
[1763659216842,0.2,132.23,132.16,1.94]
[1763659217156,0.2,132.23,132.19,13.23533412]
[1763659217356,0.2,132.23,132.22,13.23533412]
[1763659217724,0.2,132.23,132.22,0.7]
[1763659217939,0.2,132.23,132.22,13.93533412]
[1763659218142,9.78882769,132.22,132.14,0.7]
[1763659218450,9.78882769,132.19,132.11,0.7]
[1763659218948,9.78882769,132.18,132.11,13.93533412]
[1763659219122,18.12096,132.17,132.07,1.92]
[1763659219325,9.78882769,132.19,132.11,0.7]
[1763659219645,9.78882769,132.15,132.11,0.7]
[1763659219838,18.12096,132.18,132.13,13.23533412]
[1763659220022,9.78882769,132.13,131.98,1.99999999]
[1763659220226,9.78882769,132.11,132.06,13.23533412]
[1763659220526,9.78882769,132.13,132.06,13.23533412]
[1763659220729,27.90978769,132.1,132.06,0.7]
[1763659220950,27.90978769,132.1,131.99,1.92]
[1763659220951,23.02416181,132.08,131.99,1.92]
[1763659221129,13.23533412,132.07,132.03,13.23533412]
[1763659221328,23.02416181,132.06,132.01,0.7]
[1763659221650,23.02416181,132.06,131.92,31.47533412]
[1763659221651,13.23533412,132.05,132.0,13.23533412]
[1763659221843,9.78882769,132.04,132.0,13.93533412]
[1763659222043,9.78882769,132.04,131.97,0.7]
[1763659222044,9.78882769,132.01,131.97,0.7]
[1763659222337,23.02416181,132.01,131.96,13.23533412]
[1763659222543,13.23533412,132.01,131.96,13.93533412]
[1763659222741,23.02416181,131.99,131.94,13.23533412]
[1763659222933,18.12096,132.01,131.96,13.23533412]
[1763659223132,9.78882769,132.0,131.96,0.7]
[1763659223452,23.02416181,132.03,131.98,13.23533412]
[1763659223631,13.23533412,132.0,131.91,0.7]
[1763659223945,7.572833,132.06,131.91,0.7]
[1763659223946,23.02416181,132.09,131.99,31.35629412]
[1763659224160,13.23533412,132.08,131.99,20.04096]
[1763659224336,18.12096,132.06,131.96,0.7]
[1763659224525,9.78882769,132.05,132.0,13.23533412]
[1763659224730,9.78882769,132.05,131.97,0.7]
[1763659225051,31.35629412,132.06,131.98,13.23533412]
[1763659225052,13.23533412,132.03,131.98,13.23533412]
[1763659225225,13.23533412,132.04,132.0,13.23533412]
[1763659225425,9.78882769,132.06,132.01,13.23533412]
[1763659225624,9.78882769,132.06,131.93,1.92]
[1763659225625,23.02416181,132.04,131.94,9.78882769]
[1763659225930,9.78882769,132.04,131.99,0.7]
[1763659226235,0.72,132.13,131.99,2.62]
[1763659226445,22.81,132.11,132.02,13.23533412]
[1763659226625,9.78882769,132.07,132.03,13.23533412]
[1763659226823,13.23533412,132.09,132.04,13.23533412]
[1763659227043,0.72,132.11,132.04,13.23533412]
[1763659227044,13.23533412,132.1,132.05,13.23533412]
[1763659227242,1.92,132.1,132.0,18.12096]
[1763659227432,13.23533412,132.09,132.04,13.23533412]
[1763659227637,9.78882769,132.09,132.05,13.93533412]
[1763659227832,9.78882769,132.09,132.0,1.7]
[1763659227833,27.90978769,132.09,132.0,1.7]
[1763659228036,13.23533412,132.04,132.0,1.0]
[1763659228256,9.78882769,132.03,132.0,1.0]
[1763659228462,23.02416181,132.01,132.0,1.0]
[1763659229055,13.23533412,132.01,132.0,1.0]
[1763659229263,23.02416181,132.01,132.0,1.0]
[1763659229579,23.02416181,132.01,132.0,0.74]
[1763659229580,23.74416181,132.01,132.0,0.74]
[1763659229734,10.50882769,132.01,132.0,0.74]
[1763659229932,9.78882769,132.01,132.0,0.74]
[1763659230136,23.02416181,132.01,132.0,0.74]
[1763659230332,9.78882769,132.01,132.0,0.74]
[1763659230555,9.78882769,132.02,132.0,0.74]
[1763659230951,23.02416181,132.01,132.0,0.74]
[1763659231258,9.78882769,132.02,132.0,0.74]
[1763659231760,23.02416181,132.02,132.0,0.74]
[1763659231996,23.02416181,132.01,132.0,0.74]
[1763659232280,81.2193455,132.01,132.0,0.64]
[1763659232457,73.64416181,132.01,132.0,0.64]
[1763659232777,23.02416181,132.01,132.0,0.64]
[1763659232981,23.54416181,132.01,132.0,0.64]
[1763659233284,67.88401138,132.01,132.0,0.54]
[1763659233455,73.54416181,132.01,132.0,0.54]
[1763659233658,28.42978769,132.01,132.0,0.54]
[1763659233980,9.78882769,131.93,131.86,14.09533412]
[1763659234182,13.23533412,131.89,131.86,0.86]
[1763659234359,13.23533412,131.89,131.86,0.2]
[1763659234687,13.23533412,131.89,131.86,0.86]
[1763659234897,9.78882769,131.87,131.86,0.2]
[1763659235056,22.31783055,131.87,131.86,0.2]
[1763659235255,9.78882769,131.87,131.86,0.2]
[1763659235483,22.31783055,131.87,131.86,0.2]
[1763659235689,9.78882769,131.87,131.86,0.2]
[1763659235859,22.31783055,131.87,131.86,0.2]
[1763659236050,9.78882769,131.87,131.86,0.2]
[1763659236255,22.31783055,131.87,131.86,0.2]
[1763659236679,24.23783055,131.87,131.86,0.2]
[1763659236864,24.98605098,131.87,131.86,0.2]
[1763659237459,93.52701098,131.87,131.86,0.2]
[1763659237657,75.40605098,131.87,131.86,0.1]
[1763659238461,75.40605098,131.87,131.78,0.66]
[1763659238462,9.78882769,131.83,131.76,13.93722329]
[1763659238655,68.12096,131.83,131.67,5.96111515]
[1763659238855,9.78882769,131.79,131.73,0.66]
[1763659239091,13.27722329,131.77,131.73,0.66]
[1763659239503,13.27722329,131.76,131.73,0.66]
[1763659239717,13.27722329,131.76,131.72,0.1]
[1763659239718,9.78882769,131.73,131.72,0.1]
[1763659239982,27.90978769,131.71,131.65,0.66]
[1763659240185,1.99999999,131.71,131.65,13.27722329]
[1763659240410,9.78882769,131.71,131.66,13.27722329]
[1763659240616,1.99999999,131.73,131.58,23.06605098]
[1763659240917,9.78882769,131.69,131.57,9.52035869]
[1763659241207,23.06605098,131.67,131.57,1.92]
[1763659241507,11.78882768,131.67,131.58,18.12096]
[1763659241707,11.78882768,131.67,131.62,13.27722329]
[1763659241918,9.78882769,131.67,131.62,13.27722329]
[1763659242104,1.99999999,131.69,131.64,13.27722329]
[1763659242317,9.78882769,131.67,131.63,13.93722329]
[1763659242509,1.99999999,131.67,131.63,0.66]
[1763659242713,11.78882768,131.7,131.65,13.27722329]
[1763659242912,11.78882768,131.7,131.67,11.33088486]
[1763659243221,9.78882769,131.74,131.68,0.66]
[1763659243426,9.78882769,131.75,131.7,11.33088486]
[1763659243589,1.99999999,131.76,131.73,11.33088486]
[1763659243784,11.33088486,131.79,131.74,11.33088486]
[1763659244114,1.99999999,131.82,131.77,11.33088486]
[1763659244329,0.23094513,131.83,131.77,18.12096]
[1763659244531,1.99999999,131.82,131.78,11.33088486]
[1763659244734,1.99999999,131.8,131.76,11.33088486]
[1763659244897,11.56182999,131.83,131.79,11.33088486]
[1763659245100,11.56182999,131.83,131.8,11.33088486]
[1763659245101,1.99999999,131.83,131.8,11.33088486]
[1763659245312,1.99999999,131.86,131.82,11.33088486]
[1763659245523,1.99999999,131.88,131.84,11.33088486]
[1763659245721,1.99999999,131.86,131.79,18.78096]
[1763659245924,1.99999999,131.87,131.79,18.78096]
[1763659246096,1.99999999,131.87,131.83,11.33088486]
[1763659246301,1.99999999,131.87,131.84,11.33088486]
[1763659246518,0.23094513,131.86,131.78,1.94]
[1763659246730,1.99999999,131.86,131.83,11.33088486]
[1763659247099,2.23094512,131.89,131.85,11.33088486]
[1763659247296,1.99999999,131.89,131.86,11.33088486]
[1763659247520,1.99999999,131.89,131.81,18.78096]
[1763659247706,1.99999999,131.89,131.85,11.33088486]
[1763659247909,1.99999999,131.89,131.86,11.33088486]
[1763659248233,3.93999999,131.93,131.88,11.33088486]
[1763659248404,1.99999999,131.94,131.91,11.33088486]
[1763659248600,1.99999999,131.95,131.89,18.78096]
[1763659248807,1.99999999,131.95,131.91,11.33088486]
[1763659249123,1.99999999,131.95,131.89,0.66]
[1763659249325,1.99999999,131.97,131.93,11.33088486]
[1763659249520,0.23094513,131.98,131.94,11.33088486]
[1763659249723,1.99999999,131.97,131.93,11.33088486]
[1763659249901,1.99999999,131.99,131.96,11.33088486]
[1763659250228,1.99999999,131.99,131.9,1.94]
[1763659250229,1.99999999,131.98,131.91,18.12096]
[1763659250433,1.99999999,131.97,131.96,11.33088486]
[1763659250611,1.99999999,131.99,131.96,12.02088486]
[1763659250814,1.99999999,131.99,131.96,11.33088486]
[1763659251035,1.99999999,131.99,131.97,11.33088486]
[1763659251231,1.99999999,131.99,131.98,12.02088486]
[1763659251533,9.78882769,132.01,131.95,0.69]
[1763659251701,9.78882769,131.98,131.96,11.33088486]
[1763659251905,1.99999999,132.01,131.97,11.33088486]
[1763659252109,1.99999999,131.99,131.97,11.33088486]
[1763659252315,1.99999999,132.03,131.98,11.33088486]
[1763659252628,1.99999999,132.03,131.98,0.69]
[1763659252832,0.69,132.11,131.95,1.94]
[1763659252833,1.99999999,132.06,132.02,11.33088486]
[1763659253127,1.99999999,132.06,132.03,11.33088486]
[1763659253328,9.78882769,132.05,132.03,11.33088486]
[1763659253536,9.78882769,132.03,132.02,11.33088486]
[1763659253835,9.78882769,132.03,131.94,7.57914408]
[1763659253836,1.99999999,132.02,131.96,20.06096]
[1763659254024,1.99999999,132.07,132.01,12.02088486]
[1763659254222,1.99999999,132.05,132.03,11.33088486]
[1763659254434,1.99999999,132.05,132.01,18.81096]
[1763659254632,1.99999999,132.05,132.03,11.33088486]
[1763659254932,9.78882769,132.04,132.03,11.33088486]
[1763659255140,9.78882769,132.04,132.0,18.12096]
[1763659255449,9.78882769,132.04,132.03,11.33088486]
[1763659255757,9.78882769,132.07,132.03,11.33088486]
[1763659255912,1.99999999,132.06,132.05,11.33088486]
[1763659256116,1.99999999,132.06,132.04,11.33088486]
[1763659256317,21.11971255,132.09,132.04,11.33088486]
[1763659256517,1.99999999,132.06,132.04,11.33088486]
[1763659256921,1.99999999,132.06,132.01,20.06096]
[1763659256922,9.78882769,132.05,132.01,20.06096]
[1763659257116,9.78882769,132.05,132.03,11.33088486]
[1763659257322,11.33088486,132.08,132.02,0.69]
[1763659257323,9.78882769,132.09,132.04,11.33088486]
[1763659257524,23.11971254,132.09,132.04,11.33088486]
[1763659257738,23.11971254,132.09,132.02,18.81096]
[1763659257739,1.99999999,132.05,132.02,18.81096]
[1763659257955,9.78882769,132.04,132.01,1.94]
[1763659258257,1.99999999,132.03,132.01,13.27088486]
[1763659258421,1.99999999,132.03,132.01,11.33088486]
[1763659258737,1.99999999,132.03,131.98,18.81096]
[1763659258939,11.78882768,132.02,131.98,11.33088486]
[1763659259143,11.78882768,132.02,132.0,11.33088486]
[1763659259144,9.78882769,132.02,132.0,11.33088486]
[1763659259442,13.33088485,132.04,132.0,11.33088486]
[1763659259652,13.33088485,132.04,131.97,1.92]
[1763659259653,1.96999999,132.12,132.03,11.33088486]
[1763659259820,1.27999999,132.07,132.04,11.33088486]
[1763659260022,11.06882768,132.06,132.03,11.33088486]
[1763659260228,11.06882768,132.06,132.02,13.25088486]
[1763659260557,1.27999999,132.06,132.05,11.33088486]
[1763659260859,1.27999999,132.1,132.05,11.33088486]
[1763659261016,1.27999999,132.04,131.97,0.69]
[1763659261223,2.63,132.12,131.83,50.0]
[1763659261224,1.27999999,132.03,131.99,18.12096]
[1763659261426,1.27999999,132.03,131.98,2.63]
[1763659261427,1.27999999,132.02,131.98,1.94]
[1763659261746,11.06882768,132.01,131.98,1.94]
[1763659261924,11.06882768,132.01,131.96,18.81096]
[1763659261925,1.27999999,132.01,131.99,12.02088486]
[1763659262125,1.27999999,132.03,132.0,11.33088486]
[1763659262325,9.78882769,131.98,131.95,0.69]
[1763659262549,11.06882768,131.98,131.94,13.27088486]
[1763659262864,11.06882768,131.98,131.94,2.63]
[1763659263024,9.78882769,131.96,131.94,1.94]
[1763659263221,11.06882768,131.96,131.93,11.33088486]
[1763659263433,11.06882768,132.01,131.98,18.12096]
[1763659263629,1.96999999,132.05,132.0,11.33088486]
[1763659263844,11.06882768,132.04,131.99,0.69]
[1763659264144,11.06882768,132.04,132.02,11.33088486]
[1763659264348,1.27999999,132.04,132.01,11.33088486]
[1763659264531,9.78882769,132.01,131.99,18.12096]
[1763659264733,1.27999999,132.04,132.0,12.02088486]
[1763659265054,9.78882769,132.01,131.99,1.94]
[1763659265230,9.78882769,132.07,132.03,18.12096]
[1763659265425,9.78882769,132.08,132.04,11.33088486]
[1763659265643,0.69,132.1,132.04,0.69]
[1763659265644,1.27999999,132.1,132.04,0.69]
[1763659265850,1.27999999,132.09,132.06,11.33088486]
[1763659266045,1.27999999,132.09,132.05,11.33088486]
[1763659266247,1.51094512,132.12,132.07,18.90230542]
[1763659266426,1.27999999,132.1,132.07,7.57142056]
[1763659266626,12.02088486,132.12,132.08,11.33088486]
[1763659266627,1.27999999,132.11,132.08,11.33088486]
[1763659267062,1.27999999,132.12,132.09,11.33088486]
[1763659267267,0.2,132.13,132.1,11.33088486]
[1763659267474,0.2,132.13,132.12,11.33088486]
[1763659267771,1.27999999,132.24,132.15,18.12096]
[1763659267957,1.51094512,132.24,132.2,11.33088486]
[1763659268132,1.47999999,132.25,132.21,11.33088486]
[1763659268459,1.27999999,132.24,132.21,29.45184486]
[1763659268641,0.2,132.25,132.24,18.12096]
[1763659268850,0.2,132.25,132.22,12.02088486]
[1763659268851,0.2,132.25,132.22,0.69]
[1763659269044,0.2,132.25,132.24,11.33088486]
[1763659269443,0.2,132.25,132.24,12.02088486]
[1763659270144,0.2,132.25,132.21,20.06096]
[1763659270349,0.2,132.25,132.24,29.45184486]
[1763659270575,0.2,132.25,132.24,18.12096]
[1763659270866,0.2,132.25,132.24,30.14184486]
[1763659271249,0.2,132.25,132.24,0.69]
[1763659271456,0.2,132.25,132.18,1.94]
[1763659271457,11.06882768,132.24,132.18,1.94]
[1763659271656,1.27999999,132.23,132.19,11.33088486]
[1763659271850,1.12094513,132.25,132.19,11.33088486]
[1763659271851,0.89,132.25,132.22,18.12096]
[1763659272073,0.2,132.25,132.24,11.33088486]
[1763659272252,0.2,132.25,132.24,18.89289332]
[1763659272449,1.96999999,132.33,132.29,11.33088486]
[1763659272450,1.27999999,132.33,132.29,11.33088486]
[1763659272648,1.47999999,132.34,132.27,20.06096]
[1763659272849,1.27999999,132.32,132.27,20.06096]
[1763659273077,11.53088486,132.34,132.24,1.94]
[1763659273078,1.27999999,132.3,132.24,1.94]
[1763659273276,1.27999999,132.24,132.18,1.94]
[1763659273457,9.78882769,132.26,132.17,1.94]
[1763659273656,1.27999999,132.3,132.25,11.33088486]
[1763659273863,11.06882768,132.29,132.26,11.33088486]
[1763659274057,9.78882769,132.29,132.24,1.94]
[1763659274373,1.27999999,132.28,132.24,9.50196973]
[1763659274548,1.27999999,132.26,132.2,1.94]
[1763659274749,1.27999999,132.26,132.24,11.33088486]
[1763659274945,1.27999999,132.28,132.25,11.33088486]
[1763659275162,1.27999999,132.28,132.24,11.33088486]
[1763659275363,9.78882769,132.3,132.26,18.12096]
[1763659275562,1.27999999,132.28,132.24,1.94]
[1763659275857,1.27999999,132.26,132.25,11.33088486]
[1763659276068,11.06882768,132.3,132.25,29.45184486]
[1763659276272,1.27999999,132.3,132.25,0.69]
[1763659276470,0.1,132.31,132.29,18.12096]
[1763659276675,0.1,132.31,132.22,37.81484021]
[1763659276676,0.69,132.3,132.28,1.94]
[1763659276878,0.69,132.3,132.19,0.72]
[1763659276879,1.27999999,132.3,132.27,11.33088486]
[1763659277084,9.88882769,132.31,132.28,11.33088486]
[1763659277251,1.27999999,132.3,132.28,11.33088486]
[1763659277589,1.27999999,132.3,132.25,18.12096]
[1763659277765,9.88882769,132.31,132.29,11.33088486]
[1763659277766,0.1,132.31,132.29,11.33088486]
[1763659277971,0.69,132.3,132.26,1.92]
[1763659278271,9.78882769,132.29,132.26,13.25088486]
[1763659278460,1.27999999,132.28,132.26,1.92]
[1763659278790,1.27999999,132.26,132.21,1.92]
[1763659278963,1.27999999,132.27,132.21,2.61]
[1763659279157,0.33094513,132.31,132.25,11.33088486]
[1763659279158,1.96999999,132.29,132.25,11.33088486]
[1763659279480,11.06882768,132.28,132.26,11.33088486]
[1763659279987,11.75882768,132.28,132.26,11.33088486]
[1763659280355,0.72,132.27,132.21,2.61]
[1763659280578,1.27999999,132.29,132.26,11.33088486]
[1763659280770,0.1,132.31,132.28,11.33088486]
[1763659280985,0.1,132.31,132.3,29.45184486]
[1763659281295,0.1,132.31,132.3,11.33088486]
[1763659281455,2.09999999,132.31,132.24,1.92]
[1763659281662,11.06882768,132.28,132.26,11.33088486]
[1763659281884,1.27999999,132.27,132.22,1.92]
[1763659282069,1.27999999,132.27,132.16,11.33088486]
[1763659282070,9.78882769,132.26,132.23,11.33088486]
[1763659282273,1.27999999,132.23,132.2,11.33088486]
[1763659282486,9.78882769,132.23,132.21,11.33088486]
[1763659282690,1.27999999,132.24,132.22,11.33088486]
[1763659282859,1.27999999,132.28,132.21,1.92]
[1763659283062,1.27999999,132.26,132.21,1.92]
[1763659283282,1.27999999,132.3,132.27,18.12096]
[1763659283463,11.06882768,132.29,132.28,11.33088486]
[1763659283670,0.1,132.31,132.3,18.12096]
[1763659283986,0.1,132.31,132.29,1.92]
[1763659284199,0.1,132.31,132.3,11.33088486]
[1763659284399,0.1,132.31,132.3,37.01042384]
[1763659284571,0.1,132.31,132.3,18.88946384]
[1763659284758,0.1,132.31,132.3,37.71042384]
[1763659285182,0.1,132.31,132.3,19.58946384]
[1763659285684,1e-08,132.31,132.3,30.9203487]
[1763659285859,1e-08,132.31,132.3,8.25857898]
[1763659286057,1e-08,132.31,132.3,12.03088486]
[1763659286365,1e-08,132.31,132.29,1.92]
[1763659286586,1e-08,132.31,132.3,11.33088486]
[1763659286792,11.06882769,132.31,132.3,11.33088486]
[1763659287086,0.72000001,132.31,132.26,9.48082873]
[1763659287270,1e-08,132.31,132.3,11.33088486]
[1763659287472,1e-08,132.31,132.3,13.95088486]
[1763659287708,1e-08,132.31,132.3,25.28176972]
[1763659288005,0.2,132.34,132.33,18.12096]
[1763659288165,0.2,132.34,132.33,29.45184486]
[1763659288367,0.2,132.34,132.33,37.70871027]
[1763659289197,0.2,132.34,132.33,29.45184486]
[1763659289505,0.2,132.34,132.33,37.70871027]
[1763659289866,0.2,132.38,132.33,56.6008738]
[1763659290089,0.2,132.38,132.37,29.45184486]
[1763659290484,0.2,132.45,132.4,25.67383009]
[1763659290693,1.98999999,132.44,132.4,20.04096]
[1763659290863,0.81,132.41,132.38,18.12096]
[1763659291075,0.81,132.41,132.4,11.33088486]
[1763659291076,10.59882769,132.41,132.4,11.33088486]
[1763659291274,10.59882769,132.41,132.32,1.92]
[1763659291275,9.78882769,132.37,132.32,1.92]
[1763659291490,1.27999999,132.34,132.28,1.92]
[1763659291663,1.27999999,132.34,132.33,11.33088486]
[1763659291664,11.06882768,132.34,132.33,11.33088486]
[1763659291888,11.06882768,132.34,132.21,0.72]
[1763659291889,11.77882768,132.33,132.23,0.5]
[1763659292084,11.06882768,132.29,132.23,1.92]
[1763659292270,1.27999999,132.29,132.28,11.33088486]
[1763659292472,1.27999999,132.28,132.23,1.92]
[1763659292703,10.49882769,132.29,132.27,11.33088486]
[1763659292892,1.27999999,132.27,132.23,1.92]
[1763659293104,1.27999999,132.26,132.24,11.33088486]